[Event "*** Titled Tuesday Blitz"]
[Site "Chess.com"]
[Date "2021.04.20"]
[Round "10"]
[White "grzechu96"]
[Black "Diaschess88"]
[Result "1-0"]
[WhiteElo "2688"]
[BlackElo "2528"]
[TimeControl "180+1"]
[EndTime "11:56:53 PDT"]
[Termination "grzechu96 won on time"]

1. e4 {[%clk 0:03:00.9]} 1... c6 {[%clk 0:02:57.1]} 2. Nf3 {[%clk 0:02:59.1]}
2... d5 {[%clk 0:02:58]} 3. Nc3 {[%clk 0:02:59.7]} 3... Bg4 {[%clk 0:02:57.2]}
4. h3 {[%clk 0:02:59.6]} 4... Bxf3 {[%clk 0:02:57.1]} 5. Qxf3 {[%clk 0:03:00.5]}
5... e6 {[%clk 0:02:57.4]} 6. d3 {[%clk 0:03:00.6]} 6... Nd7 {[%clk 0:02:56.8]}
7. Be2 {[%clk 0:03:00.8]} 7... Ngf6 {[%clk 0:02:56.9]} 8. Qg3 {[%clk 0:03:01.1]}
8... g6 {[%clk 0:02:43.2]} 9. O-O {[%clk 0:02:44]} 9... h5 {[%clk 0:02:39.5]}
10. Bg5 {[%clk 0:02:43.2]} 10... Be7 {[%clk 0:02:35.6]} 11. f4 {[%clk
0:02:34.8]} 11... Qb6+ {[%clk 0:02:23.8]} 12. Kh1 {[%clk 0:02:26.4]} 12... Qxb2
{[%clk 0:02:22.6]} 13. Qe1 {[%clk 0:02:11.7]} 13... Bb4 {[%clk 0:02:15.9]} 14.
Rb1 {[%clk 0:02:06.4]} 14... Bxc3 {[%clk 0:01:53.9]} 15. Rxb2 {[%clk 0:02:06]}
15... Bxe1 {[%clk 0:01:54.1]} 16. Rxe1 {[%clk 0:02:06.9]} 16... b6 {[%clk
0:01:46.8]} 17. Bf3 {[%clk 0:01:58.8]} 17... O-O {[%clk 0:01:30.6]} 18. g4
{[%clk 0:01:48.5]} 18... hxg4 {[%clk 0:01:28.4]} 19. hxg4 {[%clk 0:01:49.4]}
19... Nh7 {[%clk 0:01:26.9]} 20. Bh4 {[%clk 0:01:43.9]} 20... g5 {[%clk
0:01:24.2]} 21. fxg5 {[%clk 0:01:07.6]} 21... Ne5 {[%clk 0:01:23.6]} 22. Bg2
{[%clk 0:01:08.1]} 22... Ng6 {[%clk 0:01:22.9]} 23. Bg3 {[%clk 0:01:08.5]} 23...
Nxg5 {[%clk 0:01:21]} 24. exd5 {[%clk 0:01:09.1]} 24... cxd5 {[%clk 0:01:20.7]}
25. c4 {[%clk 0:01:09.7]} 25... Rad8 {[%clk 0:00:45.6]} 26. cxd5 {[%clk
0:01:09.7]} 26... exd5 {[%clk 0:00:46.5]} 27. Rb5 {[%clk 0:01:10]} 27... Kg7
{[%clk 0:00:37.2]} 28. Rxd5 {[%clk 0:01:00.1]} 28... Rh8+ {[%clk 0:00:32.9]} 29.
Kg1 {[%clk 0:00:58.3]} 29... Nh3+ {[%clk 0:00:27.4]} 30. Kf1 {[%clk 0:00:56.3]}
30... Nhf4 {[%clk 0:00:28]} 31. Rxd8 {[%clk 0:00:35.4]} 31... Rxd8 {[%clk
0:00:27.6]} 32. Be4 {[%clk 0:00:34.6]} 32... Ne6 {[%clk 0:00:21.5]} 33. Rc1
{[%clk 0:00:19.3]} 33... Nc5 {[%clk 0:00:20.5]} 34. Bf5 {[%clk 0:00:19.7]} 34...
Kf6 {[%clk 0:00:18.5]} 35. Bf2 {[%clk 0:00:17.3]} 35... Rd6 {[%clk 0:00:11.8]}
36. Bxc5 {[%clk 0:00:17.2]} 36... bxc5 {[%clk 0:00:11.5]} 37. Rxc5 {[%clk
0:00:18.1]} 37... Ne5 {[%clk 0:00:11.9]} 38. Ra5 {[%clk 0:00:18.3]} 38... a6
{[%clk 0:00:11.3]} 39. Ke2 {[%clk 0:00:17.9]} 39... Nc6 {[%clk 0:00:10]} 40. Ra4
{[%clk 0:00:12.1]} 40... Nd4+ {[%clk 0:00:10.2]} 41. Kd2 {[%clk 0:00:10]} 41...
Nxf5 {[%clk 0:00:09.5]} 42. Rf4 {[%clk 0:00:09.7]} 42... Rd5 {[%clk 0:00:09]}
43. gxf5 {[%clk 0:00:10.2]} 43... Rxf5 {[%clk 0:00:09.7]} 44. Ra4 {[%clk
0:00:10.6]} 44... a5 {[%clk 0:00:08.9]} 45. Ke3 {[%clk 0:00:10.8]} 45... Rd5
{[%clk 0:00:06.7]} 46. d4 {[%clk 0:00:10.7]} 46... Kf5 {[%clk 0:00:06.3]} 47.
Rc4 {[%clk 0:00:09.3]} 47... Rb5 {[%clk 0:00:05.4]} 48. Rc2 {[%clk 0:00:09.1]}
48... Ke6 {[%clk 0:00:05.1]} 49. Rh2 {[%clk 0:00:08.4]} 49... Kd5 {[%clk
0:00:04.7]} 50. Kd3 {[%clk 0:00:07.7]} 50... Rb1 {[%clk 0:00:02.5]} 51. Rh5+
{[%clk 0:00:07.8]} 51... Kd6 {[%clk 0:00:02.3]} 52. Rxa5 {[%clk 0:00:08.7]}
52... Rd1+ {[%clk 0:00:02.5]} 53. Kc3 {[%clk 0:00:08.5]} 53... Rc1+ {[%clk
0:00:02.9]} 54. Kd2 {[%clk 0:00:09.1]} 54... Rc4 {[%clk 0:00:02.6]} 55. Kd3
{[%clk 0:00:09.2]} 55... Rc1 {[%clk 0:00:03]} 56. Ra6+ {[%clk 0:00:09.8]} 56...
Kd5 {[%clk 0:00:03.1]} 57. Ra5+ {[%clk 0:00:10.7]} 57... Kd6 {[%clk 0:00:03]}
58. Rf5 {[%clk 0:00:11]} 58... Rd1+ {[%clk 0:00:02.7]} 59. Kc2 {[%clk
0:00:11.5]} 59... Ra1 {[%clk 0:00:03]} 60. Kb3 {[%clk 0:00:11.3]} 60... Rd1
{[%clk 0:00:03]} 61. Rf4 {[%clk 0:00:11.5]} 61... Rd3+ {[%clk 0:00:02.6]} 62.
Kb4 {[%clk 0:00:11.3]} 62... Kd5 {[%clk 0:00:02.4]} 63. a4 {[%clk 0:00:11.7]}
63... Rd1 {[%clk 0:00:02.2]} 64. a5 {[%clk 0:00:06.7]} 64... Rb1+ {[%clk
0:00:02.2]} 65. Ka4 {[%clk 0:00:07.1]} 65... Kc4 {[%clk 0:00:01.8]} 66. d5+
{[%clk 0:00:06.8]} 66... Kxd5 {[%clk 0:00:01.5]} 67. a6 {[%clk 0:00:07.3]} 1-0

[Event "*** Titled Tuesday Blitz"]
[Site "Chess.com"]
[Date "2021.04.20"]
[Round "10"]
[White "Ze-Pequeno"]
[Black "JoseRemolar"]
[Result "1-0"]
[WhiteElo "2268"]
[BlackElo "2414"]
[TimeControl "180+1"]
[EndTime "11:56:54 PDT"]
[Termination "Ze-Pequeno won on time"]

1. e4 {[%clk 0:03:00.9]} 1... c5 {[%clk 0:02:59.1]} 2. Nf3 {[%clk 0:03:00.7]}
2... d6 {[%clk 0:02:59.2]} 3. d4 {[%clk 0:03:01]} 3... cxd4 {[%clk 0:03:00.1]}
4. Nxd4 {[%clk 0:03:01.9]} 4... Nf6 {[%clk 0:03:00.6]} 5. Nc3 {[%clk 0:03:02.4]}
5... a6 {[%clk 0:03:00.8]} 6. f4 {[%clk 0:03:02.8]} 6... e6 {[%clk 0:02:57.5]}
7. Qf3 {[%clk 0:03:02]} 7... Be7 {[%clk 0:02:55]} 8. g4 {[%clk 0:03:01.4]} 8...
Qc7 {[%clk 0:02:48.9]} 9. g5 {[%clk 0:02:58.9]} 9... Nfd7 {[%clk 0:02:48.6]} 10.
Be3 {[%clk 0:02:59]} 10... b5 {[%clk 0:02:46.8]} 11. Bd3 {[%clk 0:02:58.5]}
11... Bb7 {[%clk 0:02:44.7]} 12. O-O-O {[%clk 0:02:56.9]} 12... Nc6 {[%clk
0:02:35.3]} 13. Kb1 {[%clk 0:02:56.4]} 13... Nc5 {[%clk 0:02:26.1]} 14. h4
{[%clk 0:02:54.1]} 14... O-O-O {[%clk 0:02:14.2]} 15. h5 {[%clk 0:02:48.8]}
15... Kb8 {[%clk 0:02:11.6]} 16. Rhe1 {[%clk 0:02:34.5]} 16... Rc8 {[%clk
0:01:54.3]} 17. Rc1 {[%clk 0:02:32.4]} 17... h6 {[%clk 0:01:40.1]} 18. g6 {[%clk
0:02:29.6]} 18... Bf6 {[%clk 0:01:38.6]} 19. Qf2 {[%clk 0:02:10.4]} 19... b4
{[%clk 0:01:32.7]} 20. Nce2 {[%clk 0:02:07.9]} 20... Nxd4 {[%clk 0:01:29.8]} 21.
Nxd4 {[%clk 0:02:00.1]} 21... Nxe4 {[%clk 0:01:22.2]} 22. Bxe4 {[%clk 0:01:55]}
22... Bxe4 {[%clk 0:01:23.1]} 23. gxf7 {[%clk 0:01:54.6]} 23... Qxf7 {[%clk
0:01:16.2]} 24. Qd2 {[%clk 0:01:49.5]} 24... Rc4 {[%clk 0:01:01]} 25. b3 {[%clk
0:01:30.9]} 25... Rc3 {[%clk 0:00:58.8]} 26. Ne2 {[%clk 0:01:30.5]} 26... Qc7
{[%clk 0:00:55.2]} 27. Bd4 {[%clk 0:01:16.6]} 27... Bxd4 {[%clk 0:00:42]} 28.
Qxd4 {[%clk 0:01:14.9]} 28... Bxc2+ {[%clk 0:00:34.5]} 29. Kb2 {[%clk
0:01:08.5]} 29... Rc5 {[%clk 0:00:32.9]} 30. Qxb4+ {[%clk 0:01:05.2]} 30... Ka8
{[%clk 0:00:30]} 31. Nd4 {[%clk 0:01:03.3]} 31... Bf5 {[%clk 0:00:23.5]} 32.
Nxe6 {[%clk 0:00:47.6]} 32... Bxe6 {[%clk 0:00:22.2]} 33. Qe4+ {[%clk
0:00:46.6]} 33... Bd5 {[%clk 0:00:16.1]} 34. Qxd5+ {[%clk 0:00:45.1]} 34... Rxd5
{[%clk 0:00:16.3]} 35. Rxc7 {[%clk 0:00:44.7]} 35... Rf8 {[%clk 0:00:11.2]} 36.
Rxg7 {[%clk 0:00:40.9]} 36... Rd2+ {[%clk 0:00:10.1]} 37. Ka3 {[%clk 0:00:40.3]}
37... d5 {[%clk 0:00:09.9]} 38. Ree7 {[%clk 0:00:33.3]} 38... d4 {[%clk
0:00:09.3]} 39. Ra7+ {[%clk 0:00:30.4]} 39... Kb8 {[%clk 0:00:09.7]} 40. Rgb7+
{[%clk 0:00:31.1]} 40... Kc8 {[%clk 0:00:10.1]} 41. Rh7 {[%clk 0:00:31]} 41...
Kb8 {[%clk 0:00:08.7]} 42. Rab7+ {[%clk 0:00:31]} 42... Ka8 {[%clk 0:00:08.2]}
43. Rbd7 {[%clk 0:00:29.2]} 43... d3 {[%clk 0:00:07.4]} 44. Rxh6 {[%clk
0:00:27.8]} 44... a5 {[%clk 0:00:03.4]} 45. Ra6+ {[%clk 0:00:26.7]} 45... Kb8
{[%clk 0:00:03.9]} 46. Rxa5 {[%clk 0:00:26.1]} 46... Rxf4 {[%clk 0:00:04.5]} 47.
Rad5 {[%clk 0:00:22.2]} 47... Rff2 {[%clk 0:00:04]} 48. Rd8+ {[%clk 0:00:19.4]}
48... Kc7 {[%clk 0:00:03.8]} 49. R8d7+ {[%clk 0:00:19.6]} 49... Kc6 {[%clk
0:00:04.3]} 50. R7d6+ {[%clk 0:00:19.9]} 50... Kc7 {[%clk 0:00:04.8]} 51. Kb4
{[%clk 0:00:19.8]} 51... Rxa2 {[%clk 0:00:04.5]} 52. Rd7+ {[%clk 0:00:20]} 52...
Kc6 {[%clk 0:00:04.3]} 53. R7d6+ {[%clk 0:00:18.7]} 53... Kc7 {[%clk 0:00:04]}
54. Rxd3 {[%clk 0:00:19.6]} 54... Rh2 {[%clk 0:00:04]} 55. Rd7+ {[%clk
0:00:18.9]} 55... Kc6 {[%clk 0:00:03.9]} 56. R7d6+ {[%clk 0:00:17.6]} 56... Kc7
{[%clk 0:00:03.1]} 57. Rh6 {[%clk 0:00:17.5]} 57... Rh4+ {[%clk 0:00:02.5]} 58.
Kb5 {[%clk 0:00:17.3]} 58... Rah2 {[%clk 0:00:03.4]} 59. Rd5 {[%clk 0:00:16]}
59... R2h3 {[%clk 0:00:03.8]} 60. Rh7+ {[%clk 0:00:16]} 60... Kc8 {[%clk
0:00:03.4]} 61. b4 {[%clk 0:00:15.2]} 61... Rb3 {[%clk 0:00:03.6]} 62. Rc5+
{[%clk 0:00:14.1]} 62... Kd8 {[%clk 0:00:04]} 63. Rc4 {[%clk 0:00:13.7]} 63...
Rh1 {[%clk 0:00:03.1]} 64. Rd4+ {[%clk 0:00:12.4]} 64... Ke8 {[%clk 0:00:03.2]}
65. h6 {[%clk 0:00:11.1]} 65... Rh5+ {[%clk 0:00:02.5]} 66. Kc6 {[%clk
0:00:07.4]} 66... Rc3+ {[%clk 0:00:02.9]} 67. Kd6 {[%clk 0:00:07.1]} 67... Kf8
{[%clk 0:00:03.8]} 68. Rd5 {[%clk 0:00:03.4]} 68... Rh4 {[%clk 0:00:02.2]} 69.
b5 {[%clk 0:00:03.2]} 1-0

[Event "*** Titled Tuesday Blitz"]
[Site "Chess.com"]
[Date "2021.04.20"]
[Round "10"]
[White "ChessQueen"]
[Black "KonstantinB_1983"]
[Result "1-0"]
[WhiteElo "2696"]
[BlackElo "2509"]
[TimeControl "180+1"]
[EndTime "11:57:15 PDT"]
[Termination "ChessQueen won on time"]

1. e4 {[%clk 0:03:00.9]} 1... c6 {[%clk 0:02:59.7]} 2. c4 {[%clk 0:02:58.5]}
2... d5 {[%clk 0:02:59.4]} 3. cxd5 {[%clk 0:02:59.2]} 3... cxd5 {[%clk
0:02:59.5]} 4. exd5 {[%clk 0:03:00.1]} 4... Nf6 {[%clk 0:02:58.2]} 5. Nc3 {[%clk
0:03:01]} 5... g6 {[%clk 0:02:56.6]} 6. Bc4 {[%clk 0:03:00]} 6... Bg7 {[%clk
0:02:56.6]} 7. Nf3 {[%clk 0:03:00.6]} 7... Nbd7 {[%clk 0:02:56]} 8. d3 {[%clk
0:02:54.6]} 8... Nb6 {[%clk 0:02:55.9]} 9. Qb3 {[%clk 0:02:54.1]} 9... O-O
{[%clk 0:02:53.8]} 10. O-O {[%clk 0:02:52.8]} 10... Bf5 {[%clk 0:02:49.8]} 11.
Re1 {[%clk 0:02:48.5]} 11... Rc8 {[%clk 0:02:40.8]} 12. Be3 {[%clk 0:02:34.1]}
12... Nfd7 {[%clk 0:02:28]} 13. Bg5 {[%clk 0:02:23.5]} 13... Bf6 {[%clk
0:02:23.8]} 14. Bxf6 {[%clk 0:02:20.4]} 14... Nxf6 {[%clk 0:02:22.1]} 15. h3
{[%clk 0:02:17]} 15... h5 {[%clk 0:02:18.9]} 16. Re3 {[%clk 0:02:15.7]} 16...
Nfd7 {[%clk 0:02:06.8]} 17. Rae1 {[%clk 0:02:14.5]} 17... Nc5 {[%clk 0:02:06.4]}
18. Qa3 {[%clk 0:02:09.9]} 18... Re8 {[%clk 0:01:54.3]} 19. Nd4 {[%clk 0:02:02]}
19... Bd7 {[%clk 0:01:50.4]} 20. b4 {[%clk 0:01:41.5]} 20... Nca4 {[%clk
0:01:41.9]} 21. Nxa4 {[%clk 0:01:41.5]} 21... Bxa4 {[%clk 0:01:39.8]} 22. d6
{[%clk 0:01:26.9]} 22... Qxd6 {[%clk 0:01:34.3]} 23. Nb5 {[%clk 0:01:19.9]}
23... Bxb5 {[%clk 0:01:12.6]} 24. Bxb5 {[%clk 0:01:19.9]} 24... Rf8 {[%clk
0:01:06]} 25. Rxe7 {[%clk 0:01:19.1]} 25... a6 {[%clk 0:01:00]} 26. Bc4 {[%clk
0:01:03.5]} 26... Rc7 {[%clk 0:00:51.1]} 27. Rxc7 {[%clk 0:00:58]} 27... Qxc7
{[%clk 0:00:50.3]} 28. Qb3 {[%clk 0:00:55.8]} 28... Rc8 {[%clk 0:00:47.1]} 29.
Re4 {[%clk 0:00:53]} 29... Qd7 {[%clk 0:00:42.8]} 30. Rf4 {[%clk 0:00:48.5]}
30... Rf8 {[%clk 0:00:37.9]} 31. Rf6 {[%clk 0:00:46.5]} 31... Nxc4 {[%clk
0:00:35.2]} 32. Qxc4 {[%clk 0:00:46.3]} 32... Kg7 {[%clk 0:00:31.8]} 33. Qc3
{[%clk 0:00:46.1]} 33... Kh7 {[%clk 0:00:30.7]} 34. Rf4 {[%clk 0:00:45]} 34...
Rd8 {[%clk 0:00:27.3]} 35. h4 {[%clk 0:00:43.8]} 35... Kg8 {[%clk 0:00:25.1]}
36. d4 {[%clk 0:00:33.1]} 36... Qe7 {[%clk 0:00:23.1]} 37. g3 {[%clk 0:00:31.9]}
37... Qd7 {[%clk 0:00:20]} 38. Kg2 {[%clk 0:00:30.6]} 38... Qe7 {[%clk
0:00:19.7]} 39. Qb3 {[%clk 0:00:29.6]} 39... Qd7 {[%clk 0:00:18.5]} 40. Qf3
{[%clk 0:00:29.1]} 40... Kg7 {[%clk 0:00:17.7]} 41. a3 {[%clk 0:00:27.7]} 41...
Re8 {[%clk 0:00:17.1]} 42. Re4 {[%clk 0:00:21]} 42... Rd8 {[%clk 0:00:15.6]} 43.
Qf4 {[%clk 0:00:20.3]} 43... Qc6 {[%clk 0:00:14]} 44. Kh2 {[%clk 0:00:18.7]}
44... Rd7 {[%clk 0:00:13.5]} 45. Qe5+ {[%clk 0:00:18.7]} 45... Kh7 {[%clk
0:00:12.7]} 46. Rf4 {[%clk 0:00:18.4]} 46... Qc8 {[%clk 0:00:09.9]} 47. d5
{[%clk 0:00:16.7]} 47... Qd8 {[%clk 0:00:09.3]} 48. d6 {[%clk 0:00:16.7]} 48...
Qf8 {[%clk 0:00:08.8]} 49. Rd4 {[%clk 0:00:16.5]} 49... Kg8 {[%clk 0:00:08.4]}
50. Qf6 {[%clk 0:00:16.4]} 50... Qd8 {[%clk 0:00:08.3]} 51. Qxd8+ {[%clk
0:00:16.3]} 51... Rxd8 {[%clk 0:00:08.6]} 52. Kg2 {[%clk 0:00:17]} 52... Kg7
{[%clk 0:00:08.7]} 53. Kf3 {[%clk 0:00:17.5]} 53... Kf6 {[%clk 0:00:08.9]} 54.
d7 {[%clk 0:00:14.5]} 54... Ke6 {[%clk 0:00:09.1]} 55. Kf4 {[%clk 0:00:14.9]}
55... Rxd7 {[%clk 0:00:08.4]} 56. Rxd7 {[%clk 0:00:13.5]} 56... Kxd7 {[%clk
0:00:08.4]} 57. Ke5 {[%clk 0:00:14]} 57... Ke7 {[%clk 0:00:08.7]} 58. f3 {[%clk
0:00:13.5]} 58... f6+ {[%clk 0:00:08.9]} 59. Kd5 {[%clk 0:00:13.5]} 59... Kd7
{[%clk 0:00:09.3]} 60. g4 {[%clk 0:00:13.8]} 60... Ke7 {[%clk 0:00:07.3]} 61.
gxh5 {[%clk 0:00:13.7]} 61... gxh5 {[%clk 0:00:06.9]} 62. a4 {[%clk 0:00:14]}
62... Kd7 {[%clk 0:00:05.7]} 63. a5 {[%clk 0:00:13.1]} 63... Ke7 {[%clk
0:00:04.8]} 64. Kc5 {[%clk 0:00:13.6]} 64... Kd7 {[%clk 0:00:04.7]} 65. Kb6
{[%clk 0:00:13.6]} 65... Kc8 {[%clk 0:00:05.1]} 66. f4 {[%clk 0:00:12.4]} 66...
Kb8 {[%clk 0:00:03.8]} 67. b5 {[%clk 0:00:11.1]} 67... axb5 {[%clk 0:00:02.7]}
68. Kxb5 {[%clk 0:00:12]} 68... Kc7 {[%clk 0:00:03]} 69. Kc5 {[%clk 0:00:12.6]}
69... Kd7 {[%clk 0:00:03.1]} 70. Kb6 {[%clk 0:00:10.9]} 70... Kc8 {[%clk
0:00:03]} 71. f5 {[%clk 0:00:10.1]} 71... Kb8 {[%clk 0:00:02.7]} 72. Kb5 {[%clk
0:00:10.8]} 72... Kc7 {[%clk 0:00:02.4]} 73. Kc5 {[%clk 0:00:11.2]} 73... Kd7
{[%clk 0:00:02.4]} 74. Kd5 {[%clk 0:00:11.9]} 74... Ke7 {[%clk 0:00:02.3]} 75.
Kc4 {[%clk 0:00:12.2]} 75... Kd6 {[%clk 0:00:02.1]} 76. Kb5 {[%clk 0:00:12.9]}
76... Kc7 {[%clk 0:00:02]} 77. Kc5 {[%clk 0:00:12.5]} 77... Kd7 {[%clk
0:00:01.7]} 78. Kb6 {[%clk 0:00:12.5]} 78... Kc8 {[%clk 0:00:01.9]} 79. Ka7
{[%clk 0:00:11.7]} 79... Kc7 {[%clk 0:00:01.9]} 80. Ka8 {[%clk 0:00:12.2]} 80...
Kc6 {[%clk 0:00:02.1]} 81. Kb8 {[%clk 0:00:12.3]} 81... Kb5 {[%clk 0:00:02]} 82.
Kxb7 {[%clk 0:00:12.6]} 82... Kxa5 {[%clk 0:00:02.4]} 83. Kc6 {[%clk 0:00:13.2]}
83... Ka6 {[%clk 0:00:01.6]} 84. Kd6 {[%clk 0:00:13.8]} 84... Kb6 {[%clk
0:00:01.8]} 85. Ke6 {[%clk 0:00:14.5]} 85... Kc6 {[%clk 0:00:02]} 86. Kxf6
{[%clk 0:00:15.2]} 1-0

[Event "*** Titled Tuesday Blitz"]
[Site "Chess.com"]
[Date "2021.04.20"]
[Round "10"]
[White "Jenia84"]
[Black "iulik86"]
[Result "0-1"]
[WhiteElo "2419"]
[BlackElo "2582"]
[TimeControl "180+1"]
[EndTime "11:57:15 PDT"]
[Termination "iulik86 won by resignation"]

1. e4 {[%clk 0:03:00.9]} 1... c5 {[%clk 0:02:59.4]} 2. Nf3 {[%clk 0:03:00.5]}
2... d6 {[%clk 0:02:59.5]} 3. Bb5+ {[%clk 0:02:58.1]} 3... Nd7 {[%clk
0:02:58.6]} 4. Ba4 {[%clk 0:02:57.5]} 4... Nf6 {[%clk 0:02:57.8]} 5. O-O {[%clk
0:02:57.4]} 5... g6 {[%clk 0:02:56.8]} 6. c4 {[%clk 0:02:53.4]} 6... Bg7 {[%clk
0:02:56.8]} 7. Nc3 {[%clk 0:02:53.5]} 7... O-O {[%clk 0:02:56.6]} 8. d4 {[%clk
0:02:51.7]} 8... cxd4 {[%clk 0:02:50.6]} 9. Nxd4 {[%clk 0:02:52.1]} 9... Qc7
{[%clk 0:02:47.7]} 10. Qe2 {[%clk 0:02:40.9]} 10... Ne5 {[%clk 0:02:28.5]} 11.
Bb3 {[%clk 0:02:36.4]} 11... Nc6 {[%clk 0:02:05.8]} 12. Nxc6 {[%clk 0:02:14.2]}
12... bxc6 {[%clk 0:02:06.7]} 13. h3 {[%clk 0:02:09.6]} 13... a5 {[%clk
0:02:04.7]} 14. Be3 {[%clk 0:02:08.3]} 14... Ba6 {[%clk 0:02:00.9]} 15. Rfd1
{[%clk 0:02:00.7]} 15... Rab8 {[%clk 0:01:52.5]} 16. Rac1 {[%clk 0:01:58.4]}
16... Nd7 {[%clk 0:01:40.9]} 17. Qd2 {[%clk 0:01:51.9]} 17... Nc5 {[%clk
0:01:34.6]} 18. Bxc5 {[%clk 0:01:43.4]} 18... dxc5 {[%clk 0:01:34.7]} 19. Na4
{[%clk 0:01:34.2]} 19... Bd4 {[%clk 0:01:31.6]} 20. Qg5 {[%clk 0:01:25.4]} 20...
Rfd8 {[%clk 0:01:25.2]} 21. Nxc5 {[%clk 0:01:12.1]} 21... Bc8 {[%clk 0:01:24.5]}
22. Na4 {[%clk 0:01:03.5]} 22... c5 {[%clk 0:01:23.7]} 23. Rd2 {[%clk
0:00:45.4]} 23... Bd7 {[%clk 0:01:18.1]} 24. Rcd1 {[%clk 0:00:43]} 24... Bc6
{[%clk 0:01:07.5]} 25. Nxc5 {[%clk 0:00:38.7]} 25... h6 {[%clk 0:01:06]} 26. Na6
{[%clk 0:00:37.7]} 26... Qa7 {[%clk 0:00:58.3]} 27. Qxh6 {[%clk 0:00:33.1]}
27... Rbc8 {[%clk 0:00:40.2]} 28. c5 {[%clk 0:00:31]} 28... e6 {[%clk
0:00:20.4]} 29. Rxd4 {[%clk 0:00:29.7]} 29... Rxd4 {[%clk 0:00:20.5]} 30. Rxd4
{[%clk 0:00:29.7]} 30... Qxa6 {[%clk 0:00:20.8]} 31. Qg5 {[%clk 0:00:28.8]}
31... Be8 {[%clk 0:00:18.8]} 32. Rd8 {[%clk 0:00:27.4]} 32... Kg7 {[%clk
0:00:16.4]} 33. Rxc8 {[%clk 0:00:26.6]} 33... Qxc8 {[%clk 0:00:17.3]} 34. Qe5+
{[%clk 0:00:26.3]} 34... Kg8 {[%clk 0:00:17.3]} 35. Qd6 {[%clk 0:00:26.2]} 35...
a4 {[%clk 0:00:17.6]} 36. Bc4 {[%clk 0:00:25.7]} 36... Bc6 {[%clk 0:00:17.2]}
37. f3 {[%clk 0:00:24.1]} 37... Qb7 {[%clk 0:00:17.5]} 38. b3 {[%clk 0:00:23.3]}
38... a3 {[%clk 0:00:16.5]} 39. Qd8+ {[%clk 0:00:22]} 39... Kg7 {[%clk
0:00:15.9]} 40. Qd4+ {[%clk 0:00:22]} 40... Kg8 {[%clk 0:00:15.7]} 41. h4 {[%clk
0:00:22.3]} 41... Be8 {[%clk 0:00:15]} 42. g4 {[%clk 0:00:21.8]} 42... Qb4
{[%clk 0:00:14.7]} 43. Qe3 {[%clk 0:00:16.5]} 43... Bb5 {[%clk 0:00:13.4]} 44.
Bxb5 {[%clk 0:00:15.7]} 44... Qxb5 {[%clk 0:00:13.4]} 45. Kf2 {[%clk 0:00:16]}
45... Qb4 {[%clk 0:00:12.8]} 46. h5 {[%clk 0:00:16.1]} 46... Kg7 {[%clk
0:00:12.6]} 47. hxg6 {[%clk 0:00:16]} 47... Kxg6 {[%clk 0:00:13.5]} 48. Kg3
{[%clk 0:00:15.9]} 48... Qb8+ {[%clk 0:00:12.6]} 49. Qf4 {[%clk 0:00:15.4]}
49... Qb4 {[%clk 0:00:13.1]} 50. Qe3 {[%clk 0:00:13.7]} 50... Qb8+ {[%clk
0:00:12.8]} 51. e5 {[%clk 0:00:14.1]} 51... Qb5 {[%clk 0:00:12.2]} 52. Qe4+
{[%clk 0:00:14.1]} 52... Kg7 {[%clk 0:00:12.5]} 53. b4 {[%clk 0:00:14.3]} 53...
Qf1 {[%clk 0:00:10.9]} 54. Qd4 {[%clk 0:00:12.6]} 54... Qe1+ {[%clk 0:00:10.5]}
55. Kf4 {[%clk 0:00:12.4]} 55... Qc1+ {[%clk 0:00:10.2]} 56. Qe3 {[%clk
0:00:10.8]} 56... Qb2 {[%clk 0:00:11.1]} 57. c6 {[%clk 0:00:08.3]} 57... Qxb4+
{[%clk 0:00:10.7]} 58. Qe4 {[%clk 0:00:08.4]} 58... Qc3 {[%clk 0:00:11]} 59. Kg3
{[%clk 0:00:08.4]} 59... Qc1 {[%clk 0:00:10.6]} 60. c7 {[%clk 0:00:07]} 60...
Qxc7 {[%clk 0:00:10.3]} 61. Qe3 {[%clk 0:00:07.3]} 61... Qa5 {[%clk 0:00:08.7]}
62. Qg5+ {[%clk 0:00:06.7]} 62... Kf8 {[%clk 0:00:08.4]} 63. Qh6+ {[%clk
0:00:06.7]} 63... Ke7 {[%clk 0:00:08.5]} 64. Qf6+ {[%clk 0:00:06.7]} 64... Ke8
{[%clk 0:00:08.8]} 65. Qh8+ {[%clk 0:00:06.3]} 65... Ke7 {[%clk 0:00:09.1]} 66.
Qf6+ {[%clk 0:00:06.2]} 66... Ke8 {[%clk 0:00:09.5]} 67. g5 {[%clk 0:00:06.3]}
67... Qe1+ {[%clk 0:00:08.9]} 68. Kg4 {[%clk 0:00:06.3]} 68... Qg1+ {[%clk
0:00:09.1]} 69. Kf4 {[%clk 0:00:06.4]} 69... Qh2+ {[%clk 0:00:09]} 70. Ke4
{[%clk 0:00:06.3]} 70... Qxa2 {[%clk 0:00:08.9]} 71. Qh8+ {[%clk 0:00:05.1]}
71... Kd7 {[%clk 0:00:09.1]} 72. Qf6 {[%clk 0:00:04.8]} 72... Qd5+ {[%clk
0:00:09.4]} 73. Kf4 {[%clk 0:00:04.6]} 73... Ke8 {[%clk 0:00:10.3]} 74. g6
{[%clk 0:00:04.5]} 74... fxg6 {[%clk 0:00:09.7]} 75. Qxg6+ {[%clk 0:00:04.6]}
75... Kd7 {[%clk 0:00:10.2]} 76. Qf7+ {[%clk 0:00:04.7]} 76... Kc6 {[%clk
0:00:10.4]} 77. Qe7 {[%clk 0:00:04.2]} 77... Qc4+ {[%clk 0:00:09.6]} 78. Kg5
{[%clk 0:00:03.7]} 78... a2 {[%clk 0:00:10]} 79. Qe8+ {[%clk 0:00:02.9]} 79...
Kd5 {[%clk 0:00:09.9]} 80. Qa8+ {[%clk 0:00:02.9]} 80... Kxe5 {[%clk 0:00:09.8]}
81. Qa5+ {[%clk 0:00:02.2]} 81... Qd5 {[%clk 0:00:09.5]} 82. f4+ {[%clk
0:00:03.1]} 82... Ke4+ {[%clk 0:00:09.5]} 83. Qxd5+ {[%clk 0:00:01.3]} 83...
Kxd5 {[%clk 0:00:10.4]} 84. f5 {[%clk 0:00:01.5]} 84... exf5 {[%clk 0:00:10.7]}
0-1